bitfinex/quotes_ETHUSD_20251119
["timestamp","ask_amount","ask_price","bid_price","bid_amount"]
[1763592394784,0.405504,2980.7,2980.4,5.0]
[1763592394990,1.36117699,2980.5,2980.4,5.0]
[1763592395187,1.67394105,2980.5,2980.4,5.0]
[1763592395377,1.7431771,2980.5,2980.4,5.0]
[1763592395885,1.02256806,2980.5,2980.4,5.0]
[1763592396102,1.37762233,2980.5,2980.4,5.0]
[1763592396308,1.84923137,2980.5,2980.4,5.0]
[1763592396808,1.12862233,2980.5,2980.4,5.0]
[1763592398775,0.77356806,2980.5,2980.4,5.0]
[1763592398976,0.460804,2980.5,2980.4,5.0]
[1763592399584,0.77356806,2980.5,2980.4,5.0]
[1763592399831,0.460804,2980.5,2980.4,5.0]
[1763592403300,0.31087843,2980.8,2980.4,5.4567]
[1763592403499,0.71762016,2980.9,2980.4,5.4567]
[1763592403500,0.03374403,2980.9,2980.4,5.4567]
[1763592403716,0.405504,2980.8,2980.4,5.928]
[1763592403919,0.03374403,2980.9,2980.4,5.928]
[1763592404118,0.03374403,2980.9,2980.5,0.4713]
[1763592404320,0.31088728,2981.2,2980.8,0.4567]
[1763592404530,0.31088728,2981.4,2980.8,0.4567]
[1763592404727,0.405504,2981.2,2980.8,0.4567]
[1763592405096,0.405504,2980.8,2980.5,0.4713]
[1763592405334,0.405504,2980.8,2980.4,5.0]
[1763592405631,0.652504,2980.5,2980.4,5.0]
[1763592405833,1.55949664,2980.5,2980.4,5.0]
[1763592406012,2.74209277,2980.5,2980.4,5.0]
[1763592406536,3.05249202,2980.5,2980.4,5.0]
[1763592406736,3.05251923,2980.5,2980.4,5.0]
[1763592407029,2.80351923,2980.5,2980.4,5.0]
[1763592407429,3.05251923,2980.5,2980.4,5.0]
[1763592408315,3.76860115,2980.5,2980.4,5.0]
[1763592409300,3.76881191,2980.5,2980.4,5.0]
[1763592409499,3.45838545,2980.5,2980.4,5.0]
[1763592411745,3.20938545,2980.5,2980.4,5.001]
[1763592412051,3.45838545,2980.5,2980.4,5.001]
[1763592412821,3.7694765,2980.5,2980.4,5.001]
[1763592415153,3.5204765,2980.5,2980.4,5.001]
[1763592415657,3.7694765,2980.5,2980.4,5.001]
[1763592415953,10.2094765,2980.5,2980.4,5.001]
[1763592416158,10.17573247,2980.5,2980.4,5.001]
[1763592416355,11.07610546,2980.5,2980.4,5.001]
[1763592417256,10.17573247,2980.5,2980.4,5.001]
[1763592418360,11.3762298,2980.5,2980.4,5.001]
[1763592419175,10.17573247,2980.5,2980.4,5.001]
[1763592420234,11.97647846,2980.5,2980.4,5.001]
[1763592420667,11.72747846,2980.5,2980.4,5.001]
[1763592420850,0.405504,2980.1,2979.8,0.001]
[1763592421051,1.68209664,2979.9,2979.8,0.001]
[1763592421253,2.70948037,2979.9,2979.8,0.001]
[1763592421564,2.95848037,2979.9,2979.8,0.001]
[1763592421765,3.42978037,2979.9,2979.8,0.001]
[1763592421967,4.41675841,2979.9,2979.8,0.001]
[1763592422413,4.45050244,2979.9,2979.8,0.001]
[1763592423267,6.85098829,2979.9,2979.8,0.001]
[1763592423489,6.81724426,2979.9,2979.8,0.001]
[1763592423982,6.98577696,2979.9,2979.8,0.001]
[1763592424637,4.58529111,2979.9,2979.8,0.001]
[1763592424838,4.61903514,2979.9,2979.8,0.001]
[1763592426199,11.05903514,2979.9,2979.8,0.001]
[1763592426343,11.02529111,2979.9,2979.8,0.001]
[1763592427555,11.02529111,2979.9,2978.7,0.4713]
[1763592427764,0.405504,2978.9,2978.7,0.4713]
[1763592427978,0.71659505,2978.9,2978.7,0.4713]
[1763592428159,0.71659505,2978.9,2978.5,0.001]
[1763592428376,1.43288773,2978.9,2978.5,0.001]
[1763592428580,0.405504,2978.7,2978.5,0.001]
[1763592429092,0.71659505,2978.7,2978.5,0.001]
[1763592429293,0.405504,2978.8,2978.6,0.4529]
[1763592429455,1.01316261,2978.8,2978.5,0.5]
[1763592429649,0.3115868,2978.7,2978.5,0.5]
[1763592430073,0.3115868,2978.7,2978.6,0.4529]
[1763592430569,0.3115868,2978.7,2978.5,0.001]
[1763592430898,0.654504,2978.6,2978.5,0.001]
[1763592431114,2.18319184,2978.6,2978.5,0.001]
[1763592431286,3.79766926,2978.6,2978.5,0.001]
[1763592432008,3.83141329,2978.6,2978.5,0.001]
[1763592433106,3.18222855,2978.6,2978.5,0.001]
[1763592433302,9.62222855,2978.6,2978.5,0.001]
[1763592433505,10.78606418,2978.6,2978.5,0.001]
[1763592433730,11.38485401,2978.6,2978.5,0.001]
[1763592434901,9.58848452,2978.6,2978.5,0.001]
[1763592435070,11.38150883,2978.6,2978.5,0.001]
[1763592435474,11.5160981,2978.6,2978.5,0.001]
[1763592435672,11.2670981,2978.6,2978.5,0.001]
[1763592435892,9.47407379,2978.6,2978.5,0.001]
[1763592436200,10.01473176,2978.6,2978.5,0.4539]
[1763592436401,8.81956979,2978.6,2978.5,0.9529]
[1763592436610,9.22507379,2978.6,2978.5,0.4539]
[1763592436812,7.87338348,2978.6,2978.5,0.4539]
[1763592436981,7.46787948,2978.6,2978.5,0.9529]
[1763592437185,8.78037612,2978.6,2978.5,0.9529]
[1763592437611,0.89617045,2979.2,2978.5,0.9529]
[1763592437801,0.34503363,2979.1,2978.6,0.499]
[1763592438000,1.06208645,2979.1,2978.6,0.499]
[1763592438203,0.3112896,2979.0,2978.6,0.499]
[1763592438423,1.61322327,2979.3,2979.0,0.4529]
[1763592438424,1.02834242,2979.2,2979.0,0.4529]
[1763592438628,1.02834242,2979.2,2978.5,0.001]
[1763592438629,0.3112896,2979.1,2978.5,0.001]
[1763592438992,0.3112896,2979.3,2979.0,0.6435]
[1763592439192,0.59444015,2979.3,2979.0,0.1906]
[1763592439494,0.99994415,2979.3,2979.2,0.4529]
[1763592440093,0.59444015,2979.3,2979.2,0.9519]
[1763592440613,1.71699697,2979.3,2979.2,0.9519]
[1763592440923,0.99994415,2979.3,2979.2,0.9519]
[1763592441093,1.8961146,2979.3,2979.2,0.9519]
[1763592441290,2.80310724,2979.3,2979.2,0.9519]
[1763592441492,1.92451287,2979.3,2979.2,0.9519]
[1763592441691,1.19716197,2980.5,2979.2,0.9519]
[1763592441893,0.002,2980.5,2979.8,0.4529]
[1763592442231,0.407504,2980.5,2979.8,0.4529]
[1763592442418,0.002,2980.5,2979.8,0.9519]
[1763592442629,0.407504,2980.5,2979.8,0.9519]
[1763592442939,0.405504,2980.3,2979.8,0.9519]
[1763592443440,0.002,2980.5,2979.8,0.9519]
[1763592444020,0.03574403,2980.5,2979.8,0.9519]
[1763592444443,0.405504,2980.4,2979.8,0.9519]
[1763592449514,0.002,2980.5,2979.8,0.9519]
[1763592449515,0.407504,2980.2,2979.8,0.9519]
[1763592449845,0.002,2980.2,2979.8,0.9519]
[1763592450931,0.405504,2980.1,2979.8,0.9519]
[1763592454349,0.002,2980.2,2979.8,0.9519]
[1763592454551,0.002,2980.2,2980.1,0.6587]
[1763592454854,0.002,2980.5,2980.1,0.6587]
[1763592455016,0.002,2980.5,2980.4,0.4734]
[1763592455211,0.002,2980.7,2980.4,0.4734]
[1763592455212,0.002,2981.0,2980.4,0.4734]
[1763592455425,0.002,2981.0,2980.9,0.4734]
[1763592455827,0.002,2981.0,2980.9,0.9567]
[1763592465959,0.002,2981.0,2980.9,0.4734]
[1763592466161,0.002,2981.0,2980.6,0.001]
[1763592466326,0.0804,2981.0,2980.6,0.4665]
[1763592466855,0.0804,2981.0,2980.6,0.001]
[1763592466856,0.43924803,2980.9,2980.6,0.001]
[1763592467055,0.405504,2980.9,2980.6,0.001]
[1763592467365,0.590504,2980.9,2980.6,0.001]
[1763592468471,0.002,2981.0,2980.8,0.4536]
[1763592468842,0.002,2981.0,2980.9,0.4536]
[1763592469242,0.002,2981.0,2980.9,0.9191]
[1763592474097,0.002,2981.0,2980.9,0.4536]
[1763592475097,0.002,2981.0,2980.9,0.9191]
[1763592482768,0.002,2981.0,2980.9,1.34650009]
[1763592483565,0.002,2981.0,2980.9,0.9191]
[1763592490713,0.002,2981.0,2980.9,1.82609264]
[1763592491025,0.002,2981.0,2980.9,0.9191]
[1763592493120,0.002,2981.0,2980.9,1.82609264]
[1763592493788,0.002,2981.0,2980.9,5.18078417]
[1763592494134,0.002,2981.0,2980.9,6.03435301]
[1763592495636,0.002,2981.0,2980.9,2.67966148]
[1763592496738,0.002,2981.0,2980.9,6.03435301]
[1763592497906,0.002,2981.0,2980.9,2.67966148]
[1763592499232,0.002,2981.0,2980.9,6.03435301]
[1763592499528,0.002,2981.0,2980.9,1.88566884]
[1763592500038,0.002,2981.0,2980.9,6.14735301]
[1763592500635,0.002,2981.0,2980.9,6.18089992]
[1763592501146,0.002,2981.3,2980.9,12.85673607]
[1763592501352,0.002,2981.3,2981.2,0.6647]
[1763592501555,0.002,2981.3,2981.2,4.95959012]
[1763592501720,0.002,2981.3,2981.2,5.41899012]
[1763592501924,0.002,2981.3,2981.2,5.38544659]
[1763592502122,0.002,2981.3,2981.2,6.32124589]
[1763592503527,0.002,2981.3,2981.2,6.99392917]
[1763592507047,0.002,2981.3,2981.2,7.39943317]
[1763592507926,0.002,2981.6,2981.2,17.64414107]
[1763592508126,0.002,2981.6,2981.5,0.4894]
[1763592508327,0.002,2981.6,2981.5,5.30043833]
[1763592508527,0.002,2981.6,2981.5,9.69684233]
[1763592510292,0.002,2982.8,2981.6,4.84849664]
[1763592510460,0.002,2982.8,2982.4,0.6769]
[1763592510657,0.002,2982.8,2982.4,0.7899]
[1763592510881,0.002,2982.8,2982.4,1.2448]
[1763592512384,0.002,2982.8,2982.4,5.50479693]
[1763592512700,0.002,2982.8,2982.4,6.39058747]
[1763592518515,0.002,2982.8,2982.4,10.33209147]
[1763592519410,0.002,2982.8,2982.5,4.84849664]
[1763592519580,0.002,2982.8,2982.7,0.4953]
[1763592520075,0.002,2982.8,2982.7,0.9698]
[1763592520278,0.002,2982.8,2982.7,1.55162966]
[1763592520516,0.002,2982.8,2982.7,6.43365297]
[1763592520807,0.002,2982.8,2982.7,6.4001263]
[1763592521015,0.002,2982.8,2982.7,9.75279334]
[1763592523782,0.002,2983.4,2982.9,3.536]
[1763592524010,0.002,2983.4,2983.0,5.5361423]
[1763592524253,0.002,2983.4,2983.3,1.31249664]
[1763592524424,0.002,2983.4,2983.3,1.80779664]
[1763592524624,0.002,2983.4,2983.3,2.28229664]
[1763592525327,0.002,2983.4,2983.3,1.375304]
[1763592525527,0.002,2983.4,2983.3,1.95713366]
[1763592525736,0.002,2983.4,2983.3,6.21611905]
[1763592526519,0.002,2983.4,2983.3,9.75211905]
[1763592528812,0.002,2983.5,2983.4,4.84849664]
[1763592529139,0.002,2983.5,2983.4,5.96481544]
[1763592529309,0.002,2983.5,2983.4,7.6807952]
[1763592529508,0.002,2983.5,2983.4,7.6472764]
[1763592529946,0.002,2983.5,2983.4,10.9991568]
[1763592532364,0.002,2983.5,2983.4,11.0991568]
[1763592532931,0.002,2983.5,2983.4,10.9991568]
[1763592533254,0.002,2983.5,2983.4,11.0991568]
[1763592534452,0.002,2983.5,2983.4,10.9991568]
[1763592534652,0.002,2983.5,2983.4,10.8861568]
[1763592534852,0.002,2983.5,2983.4,10.9991568]
[1763592536763,0.002,2983.5,2983.4,11.0991568]
[1763592537169,0.002,2983.5,2983.4,11.69043003]
[1763592538065,0.002,2983.5,2983.4,11.59043003]
[1763592538469,0.002,2983.5,2983.4,11.69043003]
[1763592540654,0.002,2983.5,2983.4,11.23336089]
[1763592541649,0.002,2983.5,2983.4,11.13336089]
[1763592541874,0.002,2983.5,2983.4,11.69043003]
[1763592542705,0.002,2983.5,2983.4,11.13336089]
[1763592542972,0.002,2983.5,2983.4,11.23336089]
[1763592544072,0.002,2983.5,2983.4,11.56956089]
[1763592545068,0.002,2983.5,2983.4,15.35956089]
[1763592545783,0.002,2983.5,2983.4,15.81663003]
[1763592546591,0.002,2984.1,2983.5,0.405504]
[1763592546755,0.002,2984.1,2984.0,0.4953]
[1763592546960,0.002,2984.1,2984.0,0.6083]
[1763592547160,0.002,2984.2,2984.1,1.31249664]
[1763592547380,0.002,2984.2,2984.1,6.46326578]
[1763592547661,0.1912,2986.0,2984.5,0.405504]
[1763592547861,0.4798,2985.6,2984.6,0.63135498]
[1763592548094,0.1912,2986.0,2984.6,0.48484966]
[1763592548296,0.1876,2984.5,2984.0,0.90699264]
[1763592548468,0.1876,2984.5,2984.1,0.113]
[1763592548794,0.4848,2984.4,2984.1,0.113]
[1763592549094,0.0646,2984.2,2984.1,0.3042]
[1763592549299,0.0646,2984.2,2984.1,1.09558301]
[1763592549592,0.5452,2984.2,2984.1,1.09558301]
[1763592550387,0.5452,2984.2,2984.1,5.35366978]
[1763592550591,0.002,2984.3,2984.2,0.90699264]
[1763592550990,0.0707,2984.3,2984.2,0.90699264]
[1763592551173,0.0707,2984.3,2984.2,1.94595982]
[1763592552363,0.5471,2984.3,2984.2,5.29694165]
[1763592553271,0.0748,2984.3,2984.2,5.29694165]
[1763592553476,0.5472,2984.3,2984.2,1.03896718]
[1763592553676,0.5472,2984.3,2984.2,0.1876]
[1763592556992,0.5472,2984.3,2984.2,0.98622562]
[1763592557721,0.5472,2984.3,2984.2,1.89321826]
[1763592559800,0.0748,2984.3,2984.2,9.03420009]
[1763592560213,0.0748,2984.3,2984.2,10.27272876]
[1763592561014,0.002,2984.3,2984.2,10.75892876]
[1763592561222,0.002,2984.3,2984.2,11.20902876]
[1763592563112,0.0666,2984.3,2984.2,6.80874693]
[1763592563318,0.0666,2984.3,2984.2,9.03420009]
[1763592565453,0.0646,2984.3,2984.2,9.03420009]
[1763592565749,0.0646,2984.3,2984.2,8.12720745]
[1763592565950,0.0646,2984.3,2984.2,9.03420009]
[1763592568036,0.0666,2984.3,2984.2,9.03420009]
[1763592568231,0.002,2984.3,2984.2,10.27282858]
[1763592568431,0.002,2984.3,2984.2,11.23922858]
[1763592568643,0.002,2984.3,2984.2,7.44922858]
[1763592569539,0.002,2984.3,2984.2,6.95752858]
[1763592569739,0.002,2984.3,2984.2,6.48282858]
[1763592569936,0.002,2984.6,2984.2,16.72751777]
[1763592570243,0.4636,2984.6,2984.3,2.91495289]
[1763592570444,0.4636,2984.6,2984.3,0.90699264]
[1763592570644,0.0875,2984.4,2984.3,0.90699264]
[1763592570864,0.0875,2984.4,2984.3,1.01999264]
[1763592571043,0.5453,2984.4,2984.3,1.01999264]
[1763592571361,0.5453,2984.4,2984.2,0.1876]
[1763592571570,0.0046,2984.3,2984.1,0.001]
[1763592571863,0.5453,2984.2,2984.1,0.001]
[1763592572162,0.5453,2984.2,2984.1,0.114]
[1763592573438,0.5453,2984.2,2984.1,0.001]
[1763592574655,0.5453,2984.2,2983.9,0.001]
[1763592574834,0.0046,2984.0,2983.6,0.001]
[1763592575032,0.2709,2983.7,2983.6,0.001]
[1763592575557,0.7304,2983.7,2983.4,0.001]
[1763592575766,0.0046,2983.5,2983.4,0.001]
[1763592576138,0.4662,2983.5,2983.4,0.001]
[1763592584669,0.0046,2983.5,2983.4,0.001]
[1763592585289,0.4721,2983.5,2983.4,0.001]
[1763592586496,0.0046,2983.5,2983.4,0.001]
[1763592586704,0.002,2983.6,2983.4,0.001]
[1763592586875,0.002,2983.6,2983.4,0.5743]
[1763592587204,0.0817,2983.5,2983.4,0.114]
[1763592587689,0.5453,2983.5,2983.4,0.001]
[1763592590696,0.0817,2983.5,2983.4,0.001]
[1763592591008,0.002,2983.6,2983.4,0.001]
[1763592591009,0.002,2983.6,2983.4,0.4613]
[1763592592603,0.002,2983.6,2983.5,0.113]
[1763592593489,0.002,2983.6,2983.5,0.5733]
[1763592593669,0.002,2983.6,2983.5,0.113]
[1763592593873,0.0837,2983.6,2983.5,0.113]
[1763592595271,0.5473,2983.6,2983.5,0.113]
[1763592596789,0.0837,2983.6,2983.5,0.113]
[1763592598691,0.002,2983.6,2983.5,0.5733]
[1763592598895,0.002,2983.6,2983.5,1.0665]
[1763592599704,0.002,2983.6,2983.5,0.5733]
[1763592602112,0.0837,2983.6,2983.5,0.113]
[1763592602313,0.002,2983.6,2983.5,0.5733]
[1763592602617,0.002,2983.6,2983.5,0.113]
[1763592603197,0.002,2983.6,2983.5,0.5733]
[1763592603512,0.002,2983.6,2983.5,1.0665]
[1763592604019,0.002,2983.6,2983.5,0.5733]
[1763592604314,0.0837,2983.6,2983.5,0.113]
[1763592605106,0.002,2983.6,2983.5,0.113]
[1763592605886,0.0875,2983.6,2983.5,0.113]
[1763592606691,0.002,2983.6,2983.5,0.5733]
[1763592607724,0.0875,2983.6,2983.5,0.113]
[1763592608031,0.002,2983.6,2983.5,0.113]
[1763592608925,0.002,2983.6,2983.5,0.5795]
[1763592609493,0.002,2983.6,2983.5,1.0602]
[1763592610627,0.002,2983.6,2983.5,0.5795]
[1763592610989,0.002,2983.6,2983.5,3.93126805]
[1763592611324,0.002,2983.6,2983.5,5.59918749]
[1763592611527,0.002,2983.6,2983.5,5.23148749]
[1763592611734,0.002,2983.6,2983.5,5.71218749]
[1763592613439,0.002,2983.6,2983.5,5.59918749]
[1763592613636,0.002,2983.6,2983.5,2.36041944]
[1763592613816,0.002,2983.6,2983.5,5.71218749]
[1763592619062,0.002,2983.6,2983.5,5.71318749]
[1763592620250,0.002,2983.6,2983.5,5.23248749]
[1763592620444,0.002,2983.6,2983.5,5.71318749]
[1763592621674,0.002,2983.6,2983.5,10.53869527]
[1763592621979,0.002,2983.9,2983.8,4.94749664]
[1763592622172,0.002,2983.9,2983.8,5.9087463]
[1763592622366,0.002,2983.9,2983.8,6.3894463]
[1763592622563,0.002,2983.9,2983.8,6.52362698]
[1763592623779,0.002,2983.9,2983.8,9.87505804]
[1763592630991,0.002,2984.2,2984.1,4.040504]
[1763592631186,0.002,2984.2,2984.1,6.1901463]
[1763592631385,0.002,2984.2,2984.1,6.6637463]
[1763592631682,0.002,2984.2,2984.1,7.1422463]
[1763592632362,0.002,2984.2,2984.1,7.0292463]
[1763592632564,0.002,2984.2,2984.1,7.1422463]
[1763592633299,0.002,2984.2,2984.1,10.49334043]
[1763592633896,0.002,2984.2,2984.1,10.38034043]
[1763592634097,0.002,2984.2,2984.1,10.49334043]
[1763592635164,0.002,2984.6,2984.2,1.31249664]
[1763592635365,0.002,2984.6,2984.3,1.64370287]
[1763592635775,0.002,2984.6,2984.4,0.4785]
[1763592636095,0.002,2984.6,2984.5,0.113]
[1763592636480,0.0784,2984.6,2984.5,0.113]
[1763592636929,0.002,2984.6,2984.5,0.563]
[1763592637224,0.002,2984.6,2984.5,5.17985718]
[1763592637939,0.0784,2984.6,2984.5,4.72985718]
[1763592638833,0.0784,2984.6,2984.5,4.61685718]
[1763592639330,0.5375,2984.6,2984.5,4.72985718]
[1763592640397,0.5375,2984.6,2984.5,1.26621219]
[1763592640595,0.5375,2984.6,2984.5,4.61685718]
[1763592640800,0.5375,2984.6,2984.5,4.72985718]
[1763592641739,0.0784,2984.6,2984.5,4.72985718]
[1763592641905,0.002,2984.6,2984.5,5.20725718]
[1763592642100,0.0977,2984.6,2984.5,4.76336362]
[1763592642333,0.002,2984.6,2984.5,5.20725718]
[1763592642532,0.002,2984.6,2984.5,5.69675718]
[1763592643135,0.002,2984.6,2984.5,5.20725718]
[1763592643346,0.002,2984.6,2984.5,6.20226118]
[1763592643514,0.002,2984.6,2984.5,6.10226118]
[1763592644352,0.002,2984.6,2984.5,6.29346118]
[1763592644564,0.002,2984.6,2984.5,5.39845718]
[1763592644743,0.002,2984.6,2984.5,4.92105718]
[1763592645151,0.002,2984.6,2984.5,5.39845718]
[1763592645816,0.092,2984.6,2984.5,4.92105718]
[1763592646021,0.5474,2984.6,2984.5,4.92105718]
[1763592646937,0.5474,2984.6,2984.5,4.72985718]
[1763592647758,0.002,2984.6,2984.5,8.74225718]
[1763592648069,0.002,2984.6,2984.5,5.69675718]
[1763592648922,0.002,2984.6,2984.5,9.48675718]
[1763592651027,0.002,2984.6,2984.5,8.99725718]
[1763592651224,0.092,2984.6,2984.5,8.51985718]
[1763592652575,0.002,2984.6,2984.5,8.88425718]
[1763592652772,0.002,2984.8,2984.5,12.58240217]
[1763592653066,0.1912,2986.0,2984.8,0.90699264]
[1763592653266,0.4591,2985.4,2984.9,0.113]
[1763592653622,0.09,2985.0,2984.9,0.113]
[1763592654471,0.5454,2985.0,2984.9,0.113]
[1763592656969,0.09,2985.0,2984.9,1.01999264]
[1763592657258,0.5454,2985.0,2984.9,1.45702207]
[1763592657661,0.5454,2985.0,2984.9,2.00242207]
[1763592658230,0.5454,2985.0,2984.9,0.6584]
[1763592659165,0.09,2985.0,2984.9,0.6584]
[1763592659741,0.002,2985.2,2984.9,4.48598834]
[1763592660373,0.002,2985.2,2985.0,0.03350083]
[1763592660574,0.002,2985.2,2984.9,8.32568432]
[1763592660775,0.002,2985.2,2985.0,0.84256843]
[1763592660974,0.09,2985.0,2984.9,0.5454]
[1763592661149,0.09,2985.0,2984.5,0.90699264]
[1763592661356,0.1885,2984.6,2984.3,0.90699264]
[1763592661571,0.4591,2984.9,2984.6,0.4591]
[1763592661745,0.1876,2984.8,2984.6,0.4591]
[1763592662080,0.09,2984.7,2984.6,0.4591]
[1763592662247,0.5454,2984.7,2984.6,0.4591]
[1763592666176,0.09,2984.7,2984.6,0.4591]
[1763592666376,0.5454,2984.7,2984.4,0.113]
[1763592666573,0.0046,2984.5,2984.4,0.88096684]
[1763592666788,0.0046,2984.5,2984.4,1.78795948]
[1763592666987,0.4637,2984.5,2984.4,1.78795948]
[1763592667191,0.4637,2984.5,2984.4,2.13035948]
[1763592667378,0.4637,2984.5,2984.4,2.24335948]
[1763592667757,0.4637,2984.5,2984.4,0.90699264]
[1763592668088,0.4637,2984.5,2984.4,0.113]
[1763592668386,0.4637,2984.5,2984.1,0.001]
[1763592668560,0.4591,2984.5,2984.2,0.113]
[1763592668891,0.4591,2984.5,2984.1,0.001]
[1763592669065,0.09,2984.2,2984.1,0.001]
[1763592669575,0.5454,2984.2,2984.1,0.001]
[1763592676017,0.0046,2983.7,2983.6,0.03501]
[1763592676914,0.4605,2983.9,2983.6,0.03501]
[1763592677215,0.4605,2984.2,2983.6,0.03501]
[1763592678402,0.0886,2983.7,2983.6,0.03501]
[1763592680195,0.0886,2983.7,2983.4,0.13525274]
[1763592680410,0.0886,2983.7,2983.4,0.001]
[1763592680619,0.4605,2984.2,2983.6,0.4504]
[1763592681130,0.0886,2983.7,2983.5,0.001]
[1763592681293,0.0886,2983.7,2983.5,0.45191507]
[1763592681490,0.90699264,2984.7,2983.6,0.4504]
[1763592681707,0.4605,2984.2,2983.6,1.35739264]
[1763592682114,0.4605,2984.2,2983.6,4.70894529]
[1763592682302,0.4605,2984.2,2983.7,0.4605]
[1763592682501,0.4605,2984.2,2983.8,0.113]
[1763592683326,0.0886,2983.9,2983.8,0.113]
[1763592683512,0.4605,2984.2,2983.8,0.113]
[1763592683713,0.0896,2983.9,2983.8,0.113]
[1763592684409,0.2727,2983.9,2983.8,0.113]
[1763592685094,0.2727,2983.9,2983.8,0.5735]
[1763592685294,0.2727,2983.9,2983.8,0.113]
[1763592685513,0.2727,2983.9,2983.6,0.4577]
[1763592685707,0.2727,2983.9,2983.8,0.113]
[1763592686304,0.2727,2983.9,2983.5,0.001]
[1763592686503,0.2727,2983.9,2983.8,0.113]
[1763592686704,0.6826,2983.9,2983.5,0.114]
[1763592687113,0.4995,2983.8,2983.5,0.114]
[1763592688123,0.0518,2983.6,2983.5,0.001]
[1763592688541,0.5469,2983.6,2983.5,0.114]
[1763592688736,0.0518,2983.6,2983.5,0.114]
[1763592689854,0.6782,2983.9,2983.5,0.114]
[1763592690149,0.0563,2983.6,2983.5,0.001]
[1763592690551,0.1831,2983.9,2983.5,0.52231768]
[1763592691337,0.1831,2983.9,2983.5,0.4888]
[1763592691534,0.1831,2983.9,2983.6,0.14651655]
[1763592693046,0.6826,2983.9,2983.6,0.14651655]
[1763592693640,0.0518,2983.7,2983.6,0.14651655]
[1763592693956,0.0518,2983.7,2983.6,0.113]
[1763592694137,0.6826,2983.9,2983.6,0.113]
[1763592695045,0.1831,2983.9,2983.6,0.113]
[1763592695876,0.002,2984.2,2983.6,0.5789]
[1763592696571,0.5015,2984.2,2983.6,0.5789]
[1763592696721,0.5015,2984.2,2983.6,0.113]
[1763592696948,0.5015,2984.2,2983.6,0.6919]
[1763592697149,0.5015,2984.2,2983.6,1.59889264]
[1763592697678,0.5015,2984.2,2983.6,2.06479264]
[1763592697850,0.5015,2984.2,2983.6,2.69734785]
[1763592698352,0.5015,2984.2,2983.6,2.11844785]
[1763592698566,0.5015,2984.2,2983.6,2.61994785]
[1763592698851,0.5015,2984.2,2983.6,2.11844785]
[1763592699054,0.5015,2984.2,2983.7,0.5015]
[1763592699248,0.5015,2984.2,2983.6,2.11844785]
[1763592699590,0.5015,2984.2,2983.6,2.61994785]
[1763592699957,0.5015,2984.2,2983.6,2.11844785]
[1763592700169,0.5015,2984.2,2983.7,0.5015]
[1763592700482,0.5015,2984.2,2983.6,2.11844785]
[1763592700895,0.5015,2984.2,2983.6,2.15404785]
[1763592701095,0.5015,2984.2,2983.6,1.65254785]
[1763592701388,0.5015,2984.2,2983.7,0.5015]
[1763592701591,0.5015,2984.2,2983.6,0.74555521]
[1763592703953,0.5015,2984.2,2983.6,1.65254785]
[1763592704403,0.5015,2984.2,2983.6,2.15074785]
[1763592704727,0.5015,2984.2,2983.6,2.65224785]
[1763592704884,0.002,2984.2,2983.7,1.45734165]
[1763592705211,0.4696,2984.2,2983.7,1.95884165]
[1763592705713,0.4696,2984.2,2983.8,0.4696]
[1763592707421,0.002,2984.2,2983.8,0.4696]
[1763592707715,0.002,2984.2,2983.9,0.4982]
[1763592707914,0.002,2984.2,2984.0,0.113]
[1763592708294,0.0842,2984.1,2984.0,0.113]
[1763592709778,0.0842,2984.1,2983.8,0.53915475]
[1763592710017,0.4676,2984.1,2984.0,0.113]
[1763592710510,0.5518,2984.1,2984.0,0.113]
[1763592712236,0.0842,2984.1,2983.8,0.113]
[1763592712443,0.0046,2983.9,2983.8,0.113]
[1763592713179,0.6572,2983.9,2983.8,0.113]
[1763592713558,0.1896,2983.9,2983.8,0.113]
[1763592714654,0.0046,2983.9,2983.8,0.113]
[1763592717556,0.4722,2983.9,2983.8,0.113]
[1763592717765,0.6572,2983.9,2983.8,0.113]
[1763592717945,0.6572,2983.9,2983.7,0.113]
[1763592718346,0.077,2983.8,2983.7,0.113]
[1763592721552,0.077,2983.8,2983.5,0.001]
[1763592721754,0.4683,2983.6,2983.5,0.001]
[1763592721961,0.405504,2983.5,2983.4,0.001]
[1763592722187,1.42008059,2983.5,2983.4,0.001]
[1763592722353,1.41958276,2983.5,2983.2,0.001]
[1763592722549,0.870004,2983.3,2983.2,0.001]
[1763592722798,0.954604,2983.3,2983.2,0.001]
[1763592725087,0.954604,2983.3,2983.1,0.001]
[1763592725293,0.4684,2983.2,2983.1,0.001]
[1763592729167,0.405504,2983.1,2982.6,0.001]
[1763592729499,0.1897,2982.9,2982.6,0.001]
[1763592729673,0.485404,2982.7,2982.6,0.001]
[1763592730075,0.950804,2982.7,2982.6,0.001]
[1763592731575,0.405504,2982.6,2981.5,0.001]
[1763592731786,0.0047,2981.6,2981.5,0.001]
[1763592732485,0.4814,2981.6,2981.5,0.001]
[1763592734885,0.886904,2981.6,2981.5,0.001]
[1763592739234,0.410204,2981.6,2981.5,0.001]
[1763592739440,0.405504,2981.6,2981.5,0.001]
[1763592739994,0.478104,2981.6,2981.5,0.001]
[1763592740195,0.950704,2981.6,2981.5,0.001]
[1763592747440,0.930104,2981.6,2981.5,0.001]